bitfinex/quotes_ETHUSD_20240714
["timestamp","ask_amount","ask_price","bid_price","bid_amount"]
[1720931635141,2.3597,3199.5,3198.3,1.659672]
[1720931636476,2.3597,3199.5,3198.3,0.55]
[1720931636652,2.3597,3199.5,3198.3,0.59963445]
[1720931636969,2.3597,3199.5,3198.4,3.12655]
[1720931637172,2.3597,3199.5,3198.5,0.55]
[1720931638542,4.65237624,3199.5,3198.5,0.55]
[1720931638765,5.11761386,3199.5,3198.5,0.917655]
[1720931638975,2.82493762,3199.5,3198.5,0.917655]
[1720931639158,5.11761386,3199.5,3198.5,0.917655]
[1720931639364,2.82493762,3199.5,3198.5,0.917655]
[1720931639538,2.3597,3199.5,3198.5,0.917655]
[1720931639739,4.65237624,3199.5,3198.5,0.917655]
[1720931640581,2.3597,3199.5,3198.5,0.917655]
[1720931641449,2.3597,3199.5,3198.8,3.12614]
[1720931641648,2.3597,3199.5,3198.9,0.59960196]
[1720931641964,2.3597,3199.5,3199.0,0.3725742]
[1720931642159,2.3597,3199.5,3199.1,0.59959979]
[1720931642485,2.3597,3199.5,3199.1,0.55]
[1720931644750,2.3597,3199.5,3198.8,0.55]
[1720931644951,2.3597,3199.5,3198.6,0.55]
[1720931645187,2.3597,3199.5,3198.7,0.36764]
[1720931645351,2.3597,3199.5,3198.8,0.55]
[1720931647072,2.3597,3199.5,3198.5,0.55]
[1720931648697,2.43784965,3199.5,3198.0,0.3599662]
[1720931648907,2.4492,3199.0,3197.7,3.12724]
[1720931649052,0.0781656,3198.9,3197.7,3.12724]
[1720931649570,0.0781656,3198.8,3197.7,3.12724]
[1720931649753,0.0781656,3198.8,3197.8,0.312724]
[1720931650064,2.29234539,3198.9,3197.8,3.439864]
[1720931650259,2.4492,3199.0,3197.8,3.439864]
[1720931650260,4.74154539,3199.0,3197.8,3.439864]
[1720931650561,2.29234539,3198.9,3197.8,3.439864]
[1720931650764,2.4492,3199.0,3197.9,3.12702]
[1720931650765,4.74173189,3199.0,3197.9,3.12702]
[1720931650990,4.74173189,3199.0,3198.0,0.66165478]
[1720931651286,2.4492,3199.0,3198.1,0.55]
[1720931651593,4.74173189,3199.4,3198.3,3.12664]
[1720931651755,2.29253189,3199.3,3198.4,0.55]
[1720931651954,4.74173189,3199.4,3198.4,1.230334]
[1720931652457,2.29253189,3199.3,3198.4,1.230334]
[1720931652889,4.74173189,3199.4,3198.4,1.230334]
[1720931653091,2.29253189,3199.3,3198.4,0.55]
[1720931654201,2.29236454,3199.3,3198.1,3.67683]
[1720931654356,2.4492,3199.4,3198.4,3.12654]
[1720931654563,2.4492,3199.4,3198.5,0.55]
[1720931654564,2.29260784,3199.3,3198.5,0.55]
[1720931655113,2.76678862,3199.3,3198.5,0.55]
[1720931655258,2.29260784,3199.2,3198.5,0.55]
[1720931655756,2.29260784,3199.2,3198.2,0.275]
[1720931656515,2.29260784,3199.1,3198.2,0.275]
[1720931656811,2.29260784,3199.0,3198.0,3.66165478]
[1720931657017,0.56315238,3199.2,3198.0,6.78857478]
[1720931657219,2.29450744,3199.2,3198.0,6.83822173]
[1720931657405,2.29450744,3199.1,3198.0,6.83822173]
[1720931657617,2.29450744,3199.1,3198.0,6.78857478]
[1720931658084,2.29450744,3199.1,3198.2,3.12669]
[1720931658288,2.29450744,3199.2,3198.3,0.55]
[1720931658600,2.29450744,3199.1,3198.4,0.367669]
[1720931658793,2.29450744,3199.1,3198.5,0.55]
[1720931659232,2.29450744,3199.1,3198.3,0.55]
[1720931659892,2.29585795,3199.1,3198.3,0.55]
[1720931660110,2.29585795,3199.1,3198.2,3.12669]
[1720931660302,2.29585795,3199.1,3198.3,0.917669]
[1720931660504,0.32736053,3199.0,3198.3,0.917669]
[1720931661093,0.32736053,3199.0,3198.5,3.12645]
[1720931661456,0.32736053,3199.0,3198.6,0.59962731]
[1720931661610,0.32736053,3199.0,3198.6,0.55]
[1720931661809,0.32736053,3199.0,3198.8,3.12616]
[1720931662014,0.32736053,3199.0,3198.9,0.55]
[1720931663728,0.32736053,3199.0,3198.6,0.55]
[1720931664532,0.32736053,3199.0,3198.6,3.67635]
[1720931666442,0.32736053,3199.0,3198.6,3.72596984]
[1720931666760,0.32736053,3199.0,3198.6,3.67635]
[1720931666960,0.32736053,3199.0,3198.8,3.12616]
[1720931667160,0.32736053,3199.0,3198.9,0.55]
[1720931668269,0.32736053,3199.0,3198.9,3.67607]
[1720931668439,0.32736053,3199.0,3198.9,0.55]
[1720931669952,0.32736053,3199.0,3198.6,0.55]
[1720931670165,0.32736053,3199.0,3198.6,4.356638]
[1720931670346,0.32736053,3199.0,3198.7,0.04961867]
[1720931670552,0.32736053,3199.0,3198.8,3.67609]
[1720931671648,0.32736053,3199.0,3198.9,3.12607]
[1720931671850,0.32736053,3199.0,3198.9,3.67607]
[1720931672050,0.32736053,3199.0,3198.9,4.411286]
[1720931673972,0.32736053,3199.0,3198.9,3.67607]
[1720931677074,0.32736053,3199.0,3198.9,6.80214]
[1720931678789,2.29699108,3200.0,3199.5,3.12547]
[1720931678994,2.4685,3200.5,3199.6,3.72493593]
[1720931678995,2.29699108,3200.2,3199.6,3.72493593]
[1720931679202,2.29699108,3200.2,3199.7,3.12528]
[1720931679360,0.32729275,3200.1,3199.8,0.5995539]
[1720931679791,0.32729275,3200.1,3199.8,3.7247439]
[1720931680053,0.32729275,3200.1,3199.8,0.55]
[1720931680258,0.32729275,3200.1,3198.3,3.494269]
[1720931680259,0.32729275,3200.1,3199.7,0.55]
[1720931680460,0.32729275,3200.1,3199.8,0.55]
[1720931680686,0.32729275,3200.1,3199.6,0.55]
[1720931683085,0.32729275,3200.1,3199.6,3.72494461]
[1720931684014,0.32729275,3200.1,3199.8,3.12511]
[1720931684221,0.32729275,3200.1,3199.9,0.55]
[1720931684510,0.32729275,3200.1,3199.7,3.12528]
[1720931684671,0.32729275,3200.1,3199.8,0.55]
[1720931686997,0.32729275,3200.1,3199.6,0.55]
[1720931688729,0.32729275,3200.1,3199.6,0.917547]
[1720931689204,2.70379275,3200.1,3199.1,3.0]
[1720931691196,2.70379275,3200.1,3199.2,0.55]
[1720931691625,2.70379275,3200.1,3199.2,3.67576]
[1720931691830,2.70379275,3200.1,3199.3,6.12561]
[1720931692052,2.70379275,3200.1,3199.4,1.530137]
[1720931693240,2.70379275,3200.1,3199.4,0.55]
[1720931693936,2.70379275,3200.1,3199.4,3.67553]
[1720931694359,0.32729275,3200.1,3199.4,3.67553]
[1720931694566,0.32729275,3200.1,3199.5,3.12546]
[1720931694749,0.32729275,3200.1,3199.6,0.55]
[1720931694950,0.32729275,3200.1,3199.6,1.285099]
[1720931695855,0.32729275,3200.1,3199.6,0.55]
[1720931698255,0.32729275,3200.1,3199.6,0.59956458]
[1720931698874,0.32729275,3200.1,3199.7,3.12525]
[1720931699062,0.32729275,3200.1,3199.8,0.55]
[1720931699463,0.32729275,3200.1,3199.8,3.67519]
[1720931699773,0.32729275,3200.1,3199.8,4.355247]
[1720931699978,0.32729275,3200.1,3199.8,0.55]
[1720931700271,0.32729275,3200.1,3199.7,3.67528]
[1720931700439,0.32729275,3200.1,3199.7,0.55]
[1720931700640,0.32729275,3200.1,3199.2,1.939]
[1720931700969,0.32729275,3200.1,3199.3,3.67562]
[1720931701276,0.32729275,3200.1,3199.6,3.12536]
[1720931701438,0.32729275,3200.1,3199.7,0.55]
[1720931701652,0.32729275,3200.1,3199.7,3.67527]
[1720931702310,0.32729275,3200.1,3200.0,3.125]
[1720931702595,0.32729275,3200.1,3200.0,3.675]
[1720931702778,0.32729275,3200.1,3200.0,4.35996015]
[1720931703195,0.32729275,3200.1,3200.0,1.23496015]
[1720931703499,0.32729275,3200.1,3200.0,4.35996015]
[1720931703787,0.32729275,3200.1,3200.0,0.55]
[1720931703964,0.32729275,3200.1,3199.3,4.105806]
[1720931704168,2.68269275,3200.1,3199.4,3.12555]
[1720931704584,2.68269275,3200.1,3199.3,0.980146]
[1720931704757,2.68269275,3200.1,3199.3,7.105816]
[1720931705093,2.68269275,3200.1,3199.3,4.105816]
[1720931705462,2.68269275,3200.1,3199.4,4.0861016]
[1720931706404,2.68269275,3200.1,3199.1,3.0]
[1720931706405,0.0598092,3200.0,3199.1,3.0]
[1720931706622,0.0598092,3200.0,3198.1,3.47949653]
[1720931706623,2.29385416,3199.9,3198.5,3.12646]
[1720931706775,2.29385416,3199.6,3198.6,3.12628]
[1720931706979,2.29385416,3199.7,3198.6,3.751562]
[1720931707178,2.29385416,3199.7,3198.7,0.04960145]
[1720931707479,0.327346,3199.6,3198.9,3.12605]
[1720931708321,0.327346,3199.6,3199.0,0.55]
[1720931708924,0.327346,3199.6,3199.1,0.0495995]
[1720931709092,0.327346,3199.6,3199.2,0.55]
[1720931709827,0.327346,3199.6,3199.2,3.67578]
[1720931710006,0.327346,3199.6,3199.3,0.04958221]
[1720931710316,0.327346,3199.6,3199.5,3.12548]
[1720931710532,0.327346,3199.6,3199.5,6.80096]
[1720931711628,0.327346,3199.6,3199.5,3.83148]
[1720931713130,0.327346,3199.6,3199.5,6.95696]
[1720931713303,0.327346,3199.6,3199.5,7.7022121]
[1720931713507,0.327346,3199.6,3199.5,7.652656]
[1720931715841,0.327346,3199.6,3199.5,4.527176]
[1720931716049,0.327346,3199.6,3199.5,3.83148]
[1720931717358,0.327346,3199.6,3199.5,0.706]
[1720931717687,0.327346,3199.6,3199.5,0.156]
[1720931719235,0.327346,3199.6,3199.5,0.706]
[1720931719871,0.327346,3199.6,3199.5,0.156]
[1720931720571,2.8861615,3199.6,3199.5,0.156]
[1720931720781,2.88716124,3199.6,3199.5,0.156]
[1720931721143,2.88715421,3199.6,3199.5,0.156]
[1720931721339,0.58972432,3199.6,3199.5,0.156]
[1720931721571,2.62489549,3199.6,3199.5,0.156]
[1720931722076,2.62486826,3199.6,3199.5,0.156]
[1720931722251,2.62487827,3199.6,3199.5,0.156]
[1720931722452,2.62499829,3199.6,3199.5,0.156]
[1720931722635,0.327346,3199.6,3199.5,0.156]
[1720931722947,0.63929114,3199.6,3199.5,0.156]
[1720931725064,2.93622307,3199.6,3199.5,0.156]
[1720931725481,0.63929114,3199.6,3199.5,0.156]
[1720931725777,2.62398298,3199.6,3199.5,0.156]
[1720931727073,0.327346,3199.6,3199.5,0.156]
[1720931731752,0.327346,3199.6,3199.5,0.23801091]
[1720931732797,0.327346,3199.6,3199.5,0.156]
[1720931733892,2.29565515,3200.1,3199.5,3.28139]
[1720931734091,2.29565515,3200.2,3199.6,4.003509]
[1720931734394,2.29565515,3200.5,3200.1,3.12487]
[1720931734695,2.29565515,3200.5,3200.2,0.59953399]
[1720931734696,0.32733594,3200.5,3200.2,0.59953399]
[1720931734894,0.32733594,3200.5,3200.2,0.68093669]
[1720931735094,0.32733594,3200.5,3200.2,1.06151736]
[1720931735265,0.32733594,3200.5,3200.4,3.1246]
[1720931735468,0.32733594,3200.5,3200.4,6.7992]
[1720931735703,0.32733594,3200.5,3200.4,6.88057878]
[1720931737477,0.32733594,3200.5,3200.4,3.75597878]
[1720931737818,0.32733594,3200.5,3200.4,0.63137878]
[1720931738182,0.32733594,3200.5,3200.4,3.75597878]
[1720931738520,0.32733594,3200.5,3200.4,1.04503473]
[1720931738818,0.32733594,3200.5,3200.4,0.63137878]
[1720931740406,0.32733594,3200.5,3200.4,0.08137878]
[1720931740713,0.32733594,3200.5,3200.0,3.12498]
[1720931740915,0.32733594,3200.5,3200.4,0.08119591]
[1720931741079,0.32733594,3200.5,3200.0,3.12498]
[1720931741403,0.32733594,3200.5,3200.4,0.08119591]
[1720931741712,0.32733594,3200.5,3200.1,0.08123941]
[1720931741911,0.32733594,3200.5,3200.4,0.08120353]
[1720931742098,0.32733594,3200.5,3199.7,3.12522]
[1720931742531,0.32733594,3200.5,3199.8,3.20624289]
[1720931742685,0.32733594,3200.5,3199.8,3.87220308]
[1720931743215,0.32733594,3200.5,3199.8,0.74704308]
[1720931743426,0.32733594,3200.5,3199.9,0.55]
[1720931743781,0.32733594,3200.5,3199.9,0.63107474]
[1720931744092,0.32733594,3200.5,3199.9,0.08107474]
[1720931744507,0.32733594,3200.5,3199.5,3.28146]
[1720931744709,0.32733594,3200.5,3200.0,0.08106277]
[1720931744924,0.32733594,3200.5,3199.5,0.156]
[1720931744925,2.3471,3200.3,3199.5,0.156]
[1720931745215,0.32066067,3200.2,3199.5,0.156]
[1720931745594,2.61264277,3200.2,3199.5,0.156]
[1720931745783,2.2919821,3200.1,3199.5,0.156]
[1720931746136,2.2919821,3200.1,3199.6,0.08111063]
[1720931746137,0.0781381,3200.0,3199.6,0.08111063]
[1720931746293,2.2919821,3200.0,3199.6,0.08111063]
[1720931746493,0.22919821,3199.9,3199.5,0.156]
[1720931746737,0.22919821,3199.9,3199.7,0.08109866]
[1720931747031,0.22919821,3199.9,3199.6,0.08111063]
[1720931747192,0.22919821,3199.9,3199.5,0.156]
[1720931747397,0.22919821,3199.9,3199.6,0.08111063]
[1720931747823,2.53450535,3200.2,3199.6,0.08111063]
[1720931748344,2.2919821,3200.2,3199.6,0.08111063]
[1720931748515,0.32733594,3200.5,3199.7,0.55]
[1720931748717,2.61931804,3200.5,3199.7,0.55]
[1720931748920,0.32733594,3200.5,3199.8,0.0810867]
[1720931749122,0.07812813,3200.4,3199.8,0.0810867]
[1720931749295,0.26974462,3200.3,3199.8,0.0810867]
[1720931749636,0.26974462,3200.3,3199.5,0.156]
[1720931749839,2.3471,3200.2,3199.5,0.156]
[1720931750039,2.3471,3200.2,3199.6,0.08111063]
[1720931750398,2.4252332,3200.2,3199.6,0.08111063]
[1720931750735,0.59685222,3200.1,3199.6,0.08111063]
[1720931750929,0.67498556,3200.1,3199.6,0.08111063]
[1720931751233,0.07813796,3200.0,3199.6,0.08111063]
[1720931751398,0.59685222,3200.1,3199.5,0.156]
[1720931751595,2.88892014,3200.1,3199.6,0.08111063]
[1720931751796,0.52360201,3200.0,3199.5,0.156]
[1720931752105,0.52360201,3200.0,3199.6,0.08130114]
[1720931752309,0.52360201,3200.0,3199.5,0.156]
[1720931753112,0.60174439,3200.0,3199.5,0.156]
[1720931753511,0.52360201,3200.0,3199.5,0.156]
[1720931753724,0.34125222,3199.9,3199.5,0.156]
[1720931753924,0.52360201,3200.0,3199.6,0.08155833]
[1720931754905,0.60173621,3200.0,3199.6,0.08155833]
[1720931755102,0.60173621,3200.0,3199.5,0.156]
[1720931755103,2.29228315,3199.9,3199.5,0.156]
[1720931755460,0.07814297,3199.8,3199.5,0.156]
[1720931755926,2.29246296,3199.9,3199.5,0.156]
[1720931756123,0.2816065,3199.8,3199.5,0.156]
[1720931756916,0.07814795,3199.7,3199.5,0.156]
[1720931759127,2.29213274,3199.9,3199.5,0.156]
[1720931759530,2.81573475,3200.0,3199.5,0.156]
[1720931759945,2.29213274,3199.9,3199.5,0.156]
[1720931760828,0.07814768,3199.8,3199.5,0.156]
[1720931761157,2.29187336,3199.9,3199.5,0.156]
[1720931761334,0.36751004,3199.8,3199.5,0.156]
[1720931764060,2.29172337,3199.9,3199.5,0.156]
[1720931764696,2.29172337,3199.7,3199.5,0.156]
[1720931764991,4.56541768,3199.6,3199.5,0.156]
[1720931765157,2.73785746,3199.6,3199.5,0.156]
[1720931765579,5.73785746,3199.6,3199.5,0.156]
[1720931765793,6.14338165,3199.6,3199.5,0.156]
[1720931766091,6.06522553,3199.6,3199.5,0.156]
[1720931766880,3.79172553,3199.6,3199.5,0.156]
[1720931767061,6.08301721,3199.6,3199.5,0.156]
[1720931767267,3.79172553,3199.6,3199.5,0.156]
[1720931767464,6.08300386,3199.6,3199.5,0.23781812]
[1720931767679,6.08300386,3199.6,3199.5,0.156]
[1720931767680,3.79172553,3199.6,3199.5,0.156]
[1720931767974,3.08279104,3199.6,3199.5,0.156]
[1720931768166,6.08279104,3199.6,3199.5,0.156]
[1720931769000,0.32736807,3199.6,3199.5,0.156]
[1720931769796,0.32736807,3199.6,3199.5,0.23777617]
[1720931772797,0.32736807,3199.6,3199.5,0.156]
[1720931774499,0.32736807,3199.6,3199.5,0.23777235]
[1720931775932,0.32736807,3199.6,3199.5,0.78777235]
[1720931776951,0.32736807,3199.6,3199.5,1.17911159]
[1720931777291,0.32736807,3199.6,3199.5,1.22868833]
[1720931777593,0.32736807,3199.6,3199.5,1.17911159]
[1720931779214,0.32736807,3199.6,3199.5,4.30459159]
[1720931779437,2.29023885,3200.7,3199.6,5.47776]
[1720931779597,0.32731403,3200.0,3199.7,1.26524175]
[1720931779795,2.29023885,3200.8,3199.7,1.34690142]
[1720931779989,0.32732123,3200.0,3199.7,1.29734219]
[1720931780228,0.32732123,3200.0,3199.7,1.34690483]
[1720931780411,2.28989627,3200.8,3199.7,1.34690483]
[1720931780596,0.32732116,3200.0,3199.8,0.73202204]
[1720931780790,2.2896795,3200.9,3199.9,0.55]
[1720931781016,0.32731629,3200.2,3199.9,0.63155869]
[1720931781326,2.2896795,3200.9,3199.9,0.63155869]
[1720931781537,0.3273174,3200.2,3200.0,0.04954597]
[1720931781722,0.3273174,3200.2,3200.1,0.55]
[1720931782024,0.32731084,3200.3,3200.1,0.63153476]
[1720931782228,0.32731084,3200.3,3200.1,1.012149]
[1720931783107,0.32731084,3200.3,3200.1,0.63153476]
[1720931784138,0.32731084,3200.3,3200.1,0.08153476]
[1720931784441,0.32731084,3200.3,3199.8,0.68246648]
[1720931784643,0.32731084,3200.3,3200.2,0.08151137]
[1720931784788,0.32731084,3200.3,3199.9,0.55]
[1720931784993,0.32731084,3200.3,3200.2,0.08151137]
[1720931785194,0.32731084,3200.3,3199.9,0.55]
[1720931785395,0.32731084,3200.3,3200.2,0.08148279]
[1720931786233,0.32731084,3200.3,3199.9,0.98577565]
[1720931786396,0.32731084,3200.3,3200.2,0.08148279]
[1720931786599,0.32731084,3200.3,3199.9,0.98577565]
[1720931786818,0.32731084,3200.3,3200.2,0.08148279]
[1720931787022,0.32731084,3200.3,3199.9,0.98577565]
[1720931787338,0.32731084,3200.3,3200.2,0.08148279]
[1720931787635,0.32731084,3200.3,3200.0,0.16682421]
[1720931787811,0.32731084,3200.3,3200.2,0.08148279]
[1720931788007,0.32731084,3200.3,3200.1,0.08149475]
[1720931788325,0.32731084,3200.3,3200.2,0.08148279]
[1720931788506,0.32731084,3200.3,3199.9,0.55]
[1720931788855,0.32731084,3200.3,3199.7,0.55]
[1720931789013,2.37026893,3200.2,3200.0,0.08129899]
[1720931789218,0.51559798,3200.1,3199.5,0.156]
[1720931789519,2.29378879,3199.6,3199.5,0.156]
[1720931790099,2.29396324,3199.6,3199.5,0.156]
[1720931793512,2.29384987,3199.6,3199.5,0.156]
[1720931793921,0.59374887,3200.1,3199.5,0.156]
[1720931794227,2.70961414,3199.9,3199.5,0.156]
[1720931794404,2.29383968,3199.6,3199.5,0.156]
[1720931796043,2.29383968,3199.7,3199.5,0.156]
[1720931796541,2.29368488,3199.7,3199.5,0.156]
[1720931796839,2.52309301,3199.7,3199.5,0.156]
[1720931797049,2.29372452,3199.6,3199.5,0.156]
[1720931797738,3.0,3199.6,3199.5,0.156]
[1720931798651,5.4584,3199.6,3199.5,0.156]
[1720931798833,8.24601755,3199.6,3199.5,0.156]
[1720931799009,9.17456855,3199.6,3199.5,0.156]
[1720931799806,9.09641308,3199.6,3199.5,0.156]
[1720931800004,6.386951,3199.6,3199.5,0.156]
[1720931800212,3.928551,3199.6,3198.6,2.1329]
[1720931800514,2.29353393,3199.4,3198.7,0.06044041]
[1720931800815,3.928551,3199.6,3198.7,0.06044041]
[1720931800816,2.29353393,3199.3,3198.7,0.06044041]
[1720931801033,0.22935339,3199.3,3198.7,0.06044041]
[1720931801339,2.52288732,3199.3,3198.3,7.42]
[1720931801545,0.22935339,3199.3,3198.8,0.06042844]
[1720931801741,0.22935339,3199.3,3198.4,0.55]
[1720931801957,2.49635583,3199.2,3198.9,0.06041647]
[1720931802161,5.20553807,3199.2,3197.9,7.42]
[1720931802312,2.29377436,3198.7,3197.9,7.42]
[1720931802512,2.49635583,3199.2,3197.9,7.42]
[1720931802513,0.07816682,3198.6,3197.9,7.42]
[1720931802805,2.37194044,3198.7,3197.9,7.42]
[1720931803008,2.60913448,3198.7,3197.9,7.42]
[1720931803447,0.31536012,3198.7,3197.9,7.42]
[1720931803649,0.07816608,3198.7,3197.9,7.42]
[1720931803813,0.0781713,3198.6,3197.9,7.42]
[1720931804014,2.29264017,3198.4,3197.2,2.2519]
[1720931804361,2.29264017,3198.3,3197.2,2.2519]
[1720931804534,0.22926402,3198.2,3197.2,2.2519]
[1720931805812,3.07818963,3198.5,3197.2,2.2519]
[1720931805813,5.29264017,3198.5,3197.2,2.2519]
[1720931806013,4.71084017,3198.6,3197.3,0.55]
[1720931806417,3.0,3198.5,3197.3,0.55]
[1720931806642,5.4182,3198.6,3197.3,0.55]
[1720931806948,0.54182,3198.5,3197.4,0.592962]
[1720931807111,0.54182,3198.5,3197.5,0.55]
[1720931807321,2.28974977,3198.8,3198.1,3.12685]
[1720931807561,2.28974977,3199.3,3198.2,2.85154465]
[1720931807708,2.28974977,3199.5,3198.3,0.04964201]
[1720931808034,2.28974977,3199.6,3198.4,0.55]
[1720931808214,2.61707638,3199.7,3198.5,0.04963009]
[1720931808416,2.28974977,3199.6,3198.6,0.55]
[1720931808635,2.28974977,3199.6,3198.6,0.97812438]
[1720931808846,5.28974977,3199.6,3198.7,0.05466984]
[1720931809229,0.32732661,3199.7,3198.7,0.05466984]
[1720931809429,0.32732661,3199.7,3198.8,0.55]
[1720931809861,0.32732661,3199.7,3199.0,2.2519]
[1720931810148,0.32732661,3199.7,3199.1,0.8350721]
[1720931814262,0.32732661,3199.7,3199.1,0.60442552]
[1720931814474,0.0781402,3199.6,3199.1,0.05442552]
[1720931814643,0.0781402,3199.6,3198.7,7.42]
[1720931815077,0.40548235,3199.7,3198.8,0.05414108]
[1720931815250,0.40548235,3199.7,3198.4,3.12654]
[1720931815450,0.34054824,3199.6,3198.5,1.279844]
[1720931815652,0.34054824,3199.6,3198.5,1.334021]
[1720931815968,0.07815567,3199.5,3198.5,1.334021]
[1720931818000,0.07815567,3199.5,3198.5,0.054177]
[1720931818288,4.70672241,3199.4,3198.0,7.42]
[1720931818584,4.70672241,3199.4,3198.6,0.05416502]
[1720931818780,4.70672241,3199.4,3198.0,10.54693]
[1720931818982,0.80599925,3199.3,3198.7,0.05415305]
[1720931819197,0.07816485,3199.2,3198.0,7.42]
[1720931819486,0.07816485,3199.2,3198.8,0.05414108]
[1720931819681,2.36668726,3199.2,3198.0,7.42]
[1720931819881,5.36685044,3199.2,3198.0,7.42]
[1720931820189,0.91728497,3199.1,3198.1,0.0542249]
[1720931820358,0.07817226,3199.0,3198.1,0.0542249]
[1720931821196,0.91728497,3199.1,3198.1,0.0542249]
[1720931822195,0.07817215,3199.0,3198.1,0.0542249]
[1720931822700,0.07817215,3199.0,3198.2,0.05421292]
[1720931822993,0.07817215,3199.0,3197.6,7.42]
[1720931823192,2.36627444,3199.0,3198.3,0.05420094]
[1720931823393,2.52472973,3198.9,3197.6,7.42]
[1720931823899,3.07817799,3198.8,3197.7,0.05427281]
[1720931824105,2.3184,3198.6,3197.7,0.05427281]
[1720931824305,2.39658241,3198.6,3197.7,0.05427281]
[1720931824454,5.3184,3198.6,3197.7,0.05427281]
[1720931824655,0.76065023,3198.5,3197.7,0.05427281]
[1720931824888,3.76065023,3198.5,3197.7,0.05427281]
[1720931825399,3.0,3198.8,3197.7,0.05427281]
[1720931825566,0.07817429,3198.7,3197.7,0.05427281]
[1720931825989,5.2875801,3198.8,3197.7,0.05427281]
[1720931826321,5.28759399,3198.8,3197.7,0.05427281]
[1720931827990,3.0,3198.8,3197.8,0.55]
[1720931828305,0.23662744,3198.9,3197.8,1.72002377]
[1720931828998,0.31479818,3198.9,3197.8,0.05486349]
[1720931829308,2.60280683,3198.9,3197.6,7.42]
[1720931829601,3.0,3198.8,3197.9,0.05482289]
[1720931829773,0.07818021,3198.7,3197.7,0.05484685]
[1720931829979,0.07818021,3198.7,3198.0,0.05481282]
[1720931830295,0.30781802,3198.6,3197.6,7.42]
[1720931830458,0.07818021,3198.5,3198.1,0.05480466]
[1720931830664,3.0,3198.8,3197.7,3.17690535]
[1720931830903,3.0,3198.8,3198.2,0.05479268]
[1720931831071,3.23662744,3198.9,3197.8,0.55]
[1720931831475,0.07817068,3198.8,3197.6,7.42]
[1720931831685,0.63845894,3198.7,3197.9,0.05483052]
[1720931831889,0.63845894,3198.7,3198.0,0.05483571]
[1720931832202,0.63845894,3198.7,3197.6,7.42]
[1720931832397,3.63845894,3198.7,3198.1,0.05479893]
[1720931832608,3.63845894,3198.7,3197.6,7.42]
[1720931832816,2.28959596,3198.5,3197.6,7.42]
[1720931832975,2.28959596,3198.5,3196.0,3.12881]
[1720931832976,2.28959596,3198.2,3197.7,0.05410305]
[1720931833398,5.36778877,3198.3,3196.8,5.45482]
[1720931833600,2.28959596,3198.2,3196.8,5.45482]
[1720931833801,0.61497217,3198.1,3196.9,1.34172289]
[1720931834003,3.61497217,3198.1,3196.9,1.34172289]
[1720931834205,0.32762471,3198.0,3196.9,1.34172289]
[1720931835513,3.32762471,3198.0,3196.9,1.34172289]
[1720931835810,3.32762471,3198.0,3196.9,1.39144734]
[1720931836008,0.32762471,3198.0,3197.0,4.36255673]
[1720931836168,0.32762471,3198.0,3197.1,2.3267]
[1720931836367,0.32762471,3198.0,3197.2,0.60431754]
[1720931839218,0.07818649,3197.9,3197.2,0.60431754]
[1720931839632,0.32762471,3198.0,3197.2,0.60431754]
[1720931841495,0.32762471,3198.0,3197.4,7.42]
[1720931841691,0.32762471,3198.0,3197.6,2.2541]
[1720931841926,0.32762471,3198.0,3197.7,0.05421373]
[1720931843715,0.32762471,3198.0,3197.4,7.42]
[1720931843917,0.32762471,3198.0,3197.5,0.05424913]
[1720931844230,0.07818544,3197.9,3197.0,7.42]
[1720931844529,0.32762471,3198.0,3197.0,7.42]
[1720931844730,0.41095523,3197.9,3197.1,0.05429324]
[1720931846121,0.33276247,3197.9,3197.1,0.05429324]
[1720931846332,0.41095517,3197.9,3197.1,0.05429324]
[1720931846507,0.41095516,3197.9,3197.1,0.05429324]
[1720931846707,0.33276247,3197.9,3197.1,0.05429324]
[1720931846907,0.29512645,3197.8,3197.1,0.05429324]
[1720931847120,0.07819268,3197.7,3197.1,0.05429324]
[1720931847630,0.29512645,3197.8,3197.1,0.05429324]
[1720931848235,0.29512645,3197.8,3196.9,2.2541]
[1720931848435,0.29512645,3197.8,3197.2,0.05438241]
[1720931848638,0.29512645,3197.8,3196.9,2.2541]
[1720931848639,0.36278889,3197.7,3196.9,2.2541]
[1720931848948,0.44098153,3197.7,3196.9,2.2541]
[1720931849231,0.36278889,3197.7,3197.0,0.0543688]
[1720931849433,0.44098151,3197.7,3197.0,0.0543688]
[1720931849603,0.40580679,3197.6,3197.0,0.0543688]
[1720931849804,0.40580679,3197.6,3196.7,7.42]
[1720931850003,0.40580679,3197.6,3196.8,0.05439277]
[1720931850439,4.78805185,3197.4,3196.8,0.05439277]
[1720931850737,4.78805185,3197.4,3195.9,7.825807]
[1720931850738,2.29035185,3197.2,3195.9,7.825807]
[1720931850943,0.07821542,3197.1,3195.9,7.42]
[1720931851146,2.29035185,3197.2,3196.0,0.04920933]
[1720931851442,0.57769768,3197.1,3196.0,0.09898447]
[1720931852327,0.57769768,3197.1,3196.1,0.55]
[1720931852547,0.57769768,3197.1,3196.2,0.04918534]
[1720931853042,3.48662494,3197.3,3196.2,0.09895521]
[1720931853204,3.0,3197.3,3196.3,2.8041]
[1720931853403,3.0,3197.5,3196.4,0.04916136]
[1720931853658,5.36749483,3197.5,3196.4,0.04916136]
[1720931853827,0.3135,3197.3,3196.4,0.04916136]
[1720931854144,0.07821874,3197.2,3195.9,7.42]
[1720931854455,0.33917187,3197.1,3196.0,0.04920933]
[1720931854658,0.07821879,3197.0,3196.0,0.04920933]
[1720931855534,0.07821879,3197.0,3195.5,7.42]
[1720931855707,0.07821879,3197.0,3195.6,0.5992573]
[1720931855901,2.4977,3197.0,3195.6,0.5992573]
[1720931856105,1.939,3196.8,3195.6,0.0492573]
[1720931856306,2.4977,3196.6,3195.6,0.0492573]
[1720931856503,2.57593025,3196.6,3195.6,0.0492573]
[1720931856749,3.0,3196.5,3195.6,0.0492573]
[1720931857705,0.29150938,3196.9,3195.7,2.2541]
[1720931857949,0.58674354,3196.8,3195.8,0.04923331]
[1720931865057,0.32759207,3196.7,3195.8,0.04923331]
[1720931867069,0.07822709,3196.6,3195.8,0.04923331]
[1720931867568,0.07822709,3196.6,3195.9,0.04948982]
[1720931867769,0.07822709,3196.6,3195.2,9.9099]